[Event "Elite Hotels Open 2024"]
[Site "Elite Stadshotellet, Kungsgatan 6, Vaxjo, Sweden"]
[Date "2024.02.11"]
[Round "7.11"]
[White "Eriksson, Kristian"]
[Black "Hector, Jonny"]
[Result "0-1"]
[TimeControl "15 minutes + 5 seconds per move from move one (Round 1 - 4) / 90 minutes + 30 seconds per move from move one (Round 5 - 8)"]
[BlackTitle "GM"]
[WhiteFideId "1705172"]
[BlackFideId "1700090"]
[WhiteElo "2035"]
[BlackElo "2449"]

1. e4 {[%clk 01:30:51]} {[%emt 00:00:08]} e5 {[%clk 01:30:38]} {[%emt
00:00:22]} 2. Nf3 {[%clk 01:31:04]} {[%emt 00:00:17]} Nc6 {[%clk 01:31:00]}
{[%emt 00:00:07]} 3. Bb5 {[%clk 01:31:16]} {[%emt 00:00:19]} a6 {[%clk
01:31:11]} {[%emt 00:00:20]} 4. Ba4 {[%clk 01:31:37]} {[%emt 00:00:09]} Bc5
{[%clk 01:31:30]} {[%emt 00:00:09]} 5. O-O {[%clk 01:31:20]} {[%emt 00:00:47]}
Nge7 {[%clk 01:31:47]} {[%emt 00:00:13]} 6. Nxe5 {[%clk 01:30:17]} {[%emt
00:01:33]} Nxe5 {[%clk 01:31:58]} {[%emt 00:00:18]} 7. d4 {[%clk 01:30:41]}
{[%emt 00:00:06]} b5 {[%clk 01:32:07]} {[%emt 00:00:21]} 8. Bb3 {[%clk
01:30:56]} {[%emt 00:00:16]} Bxd4 {[%clk 01:32:24]} {[%emt 00:00:13]} 9. Qxd4
{[%clk 01:31:14]} {[%emt 00:00:12]} d6 {[%clk 01:32:38]} {[%emt 00:00:15]} 10.
f4 {[%clk 01:27:58]} {[%emt 00:03:46]} c5 {[%clk 01:32:42]} {[%emt 00:00:26]}
11. Qd1 {[%clk 01:25:46]} {[%emt 00:02:42]} c4 {[%clk 01:31:05]} {[%emt
00:02:07]} 12. fxe5 {[%clk 01:22:38]} {[%emt 00:03:38]} Qb6+ {[%clk 01:31:25]}
{[%emt 00:00:10]} 13. Kh1 {[%clk 01:22:15]} {[%emt 00:00:53]} dxe5 {[%clk
01:31:45]} {[%emt 00:00:10]} 14. Qf3 {[%clk 01:06:40]} {[%emt 00:16:04]} O-O
{[%clk 01:25:18]} {[%emt 00:06:57]} 15. Be3 {[%clk 01:04:06]} {[%emt 00:03:05]}
Qc7 {[%clk 01:24:27]} {[%emt 00:01:20]} 16. Nd2 {[%clk 01:02:32]} {[%emt
00:02:05]} Bb7 {[%clk 01:22:16]} {[%emt 00:02:41]} 17. Qg4 {[%clk 00:59:54]}
{[%emt 00:03:08]} Rad8 {[%clk 01:17:47]} {[%emt 00:04:58]} 18. Bg5 {[%clk
00:42:14]} {[%emt 00:18:10]} Rde8 {[%clk 01:05:29]} {[%emt 00:12:49]} 19. Nxc4
{[%clk 00:38:45]} {[%emt 00:04:00]} bxc4 {[%clk 01:05:37]} {[%emt 00:00:22]} 20.
Ba4 {[%clk 00:39:08]} {[%emt 00:00:07]} Bc6 {[%clk 00:59:43]} {[%emt 00:06:22]}
21. Bxc6 {[%clk 00:33:56]} {[%emt 00:05:43]} Qxc6 {[%clk 01:00:06]} {[%emt
00:00:07]} 22. Rfd1 {[%clk 00:30:46]} {[%emt 00:03:40]} f5 {[%clk 00:55:56]}
{[%emt 00:04:40]} 23. exf5 {[%clk 00:29:37]} {[%emt 00:01:40]} Nxf5 {[%clk
00:56:03]} {[%emt 00:00:21]} 24. Rf1 {[%clk 00:23:48]} {[%emt 00:06:20]} g6
{[%clk 00:49:31]} {[%emt 00:07:01]} 25. c3 {[%clk 00:19:55]} {[%emt 00:04:23]}
e4 {[%clk 00:42:09]} {[%emt 00:07:51]} 26. Rfe1 {[%clk 00:19:50]} {[%emt
00:00:35]} e3 {[%clk 00:41:37]} {[%emt 00:01:03]} 27. Qh3 {[%clk 00:16:47]}
{[%emt 00:03:32]} Qe4 {[%clk 00:35:47]} {[%emt 00:06:20]} 28. Kg1 {[%clk
00:08:05]} {[%emt 00:09:13]} e2 {[%clk 00:31:52]} {[%emt 00:04:25]} 29. g3
{[%clk 00:04:59]} {[%emt 00:03:36]} Qd3 {[%clk 00:29:26]} {[%emt 00:02:56]} 30.
Bh6 {[%clk 00:02:08]} {[%emt 00:03:21]} Rf7 {[%clk 00:27:54]} {[%emt 00:02:01]}
31. Bf4 {[%clk 00:02:07]} {[%emt 00:00:31]} Nd4 {[%clk 00:24:42]} {[%emt
00:03:42]} 32. cxd4 {[%clk 00:01:50]} {[%emt 00:00:47]} Rxf4 {[%clk 00:24:58]}
{[%emt 00:00:13]} 33. Qd7 {[%clk 00:01:37]} {[%emt 00:00:43]} Qe3+ {[%clk
00:25:09]} {[%emt 00:00:20]} 34. Kh1 {[%clk 00:01:47]} {[%emt 00:00:19]} Rxd4
{[%clk 00:24:43]} {[%emt 00:00:56]} 35. Qc6 {[%clk 00:01:48]} {[%emt 00:00:30]}
Re6 {[%clk 00:19:26]} {[%emt 00:05:47]} 36. Qa8+ {[%clk 00:01:49]} {[%emt
00:00:29]} Kg7 {[%clk 00:19:19]} {[%emt 00:00:37]} 37. Qa7+ {[%clk 00:01:51]}
{[%emt 00:00:29]} Re7 {[%clk 00:19:16]} {[%emt 00:00:32]} 38. Qxa6 {[%clk
00:01:36]} {[%emt 00:00:47]} Rd1 {[%clk 00:19:02]} {[%emt 00:00:43]} 0-1

[Event "Elite Hotels Open 2024"]
[Site "Elite Stadshotellet, Kungsgatan 6, Vaxjo, Sweden"]
[Date "2024.02.11"]
[Round "7.12"]
[White "Neretljak, Nedzad"]
[Black "Jacobsen, Mikkel Manosri"]
[Result "0-1"]
[TimeControl "15 minutes + 5 seconds per move from move one (Round 1 - 4) / 90 minutes + 30 seconds per move from move one (Round 5 - 8)"]
[WhiteTitle "CM"]
[BlackTitle "FM"]
[WhiteFideId "1713132"]
[BlackFideId "1444514"]
[WhiteElo "2032"]
[BlackElo "2374"]

1. e4 {[%clk 01:30:58]} {[%emt 00:00:01]} c5 {[%clk 01:30:56]} {[%emt
00:00:05]} 2. Nf3 {[%clk 01:31:21]} {[%emt 00:00:06]} Nf6 {[%clk 01:31:22]}
{[%emt 00:00:04]} 3. Nc3 {[%clk 01:29:00]} {[%emt 00:02:50]} d5 {[%clk
01:31:46]} {[%emt 00:00:06]} 4. exd5 {[%clk 01:27:24]} {[%emt 00:02:06]} Nxd5
{[%clk 01:32:10]} {[%emt 00:00:06]} 5. Ne4 {[%clk 01:26:36]} {[%emt 00:01:18]}
e6 {[%clk 01:28:29]} {[%emt 00:04:11]} 6. d4 {[%clk 01:23:34]} {[%emt
00:03:32]} cxd4 {[%clk 01:27:01]} {[%emt 00:01:58]} 7. Bb5+ {[%clk 01:17:31]}
{[%emt 00:06:33]} Bd7 {[%clk 01:24:47]} {[%emt 00:02:45]} 8. Bxd7+ {[%clk
01:16:50]} {[%emt 00:01:11]} Qxd7 {[%clk 01:24:19]} {[%emt 00:00:58]} 9. O-O
{[%clk 01:16:29]} {[%emt 00:00:51]} Nc6 {[%clk 01:24:16]} {[%emt 00:00:33]} 10.
Nxd4 {[%clk 01:13:56]} {[%emt 00:03:04]} Be7 {[%clk 01:19:02]} {[%emt
00:05:44]} 11. Nxc6 {[%clk 01:10:24]} {[%emt 00:04:01]} Qxc6 {[%clk 01:19:02]}
{[%emt 00:00:29]} 12. Qg4 {[%clk 01:08:46]} {[%emt 00:02:09]} O-O-O {[%clk
00:59:04]} {[%emt 00:20:28]} 13. Qe2 {[%clk 01:03:18]} {[%emt 00:05:56]} h5
{[%clk 00:53:59]} {[%emt 00:05:37]} 14. c4 {[%clk 00:55:54]} {[%emt 00:07:55]}
Nb4 {[%clk 00:54:11]} {[%emt 00:00:18]} 15. Nc3 {[%clk 00:54:49]} {[%emt
00:01:34]} Bd6 {[%clk 00:48:30]} {[%emt 00:06:11]} 16. Rd1 {[%clk 00:48:50]}
{[%emt 00:06:28]} h4 {[%clk 00:42:17]} {[%emt 00:06:44]} 17. h3 {[%clk
00:49:01]} {[%emt 00:00:18]} Bb8 {[%clk 00:41:01]} {[%emt 00:01:46]} 18. Be3
{[%clk 00:42:30]} {[%emt 00:07:02]} Qc7 {[%clk 00:41:19]} {[%emt 00:00:13]} 19.
f4 {[%clk 00:42:53]} {[%emt 00:00:05]} Rxd1+ {[%clk 00:33:39]} {[%emt
00:08:10]} 20. Rxd1 {[%clk 00:43:15]} {[%emt 00:00:07]} Rd8 {[%clk 00:33:57]}
{[%emt 00:00:13]} 21. a3 {[%clk 00:34:05]} {[%emt 00:09:40]} Nc6 {[%clk
00:32:09]} {[%emt 00:02:18]} 22. Nb5 {[%clk 00:33:13]} {[%emt 00:01:22]} Qe7
{[%clk 00:32:09]} {[%emt 00:00:30]} 23. b4 {[%clk 00:30:47]} {[%emt 00:02:56]}
Qf6 {[%clk 00:16:20]} {[%emt 00:16:19]} 24. Rxd8+ {[%clk 00:28:57]} {[%emt
00:02:20]} Qxd8 {[%clk 00:16:08]} {[%emt 00:00:42]} 25. c5 {[%clk 00:28:01]}
{[%emt 00:01:26]} Qf6 {[%clk 00:16:22]} {[%emt 00:00:16]} 26. Nd6+ {[%clk
00:21:07]} {[%emt 00:07:24]} Bxd6 {[%clk 00:14:34]} {[%emt 00:02:19]} 27. cxd6
{[%clk 00:21:19]} {[%emt 00:00:17]} Qc3 {[%clk 00:12:23]} {[%emt 00:02:41]} 28.
Qf2 {[%clk 00:18:42]} {[%emt 00:03:05]} a6 {[%clk 00:10:42]} {[%emt 00:02:13]}
29. f5 {[%clk 00:17:19]} {[%emt 00:01:53]} Qa1+ {[%clk 00:09:51]} {[%emt
00:01:21]} 30. Kh2 {[%clk 00:17:17]} {[%emt 00:00:31]} Qe5+ {[%clk 00:09:59]}
{[%emt 00:00:23]} 31. Bf4 {[%clk 00:17:41]} {[%emt 00:00:06]} Qxf5 {[%clk
00:10:22]} {[%emt 00:00:08]} 32. Qxh4 {[%clk 00:17:38]} {[%emt 00:00:31]} Kd7
{[%clk 00:10:25]} {[%emt 00:00:28]} 33. Bg3 {[%clk 00:14:09]} {[%emt 00:03:58]}
e5 {[%clk 00:06:01]} {[%emt 00:04:55]} 34. a4 {[%clk 00:12:03]} {[%emt
00:02:36]} Kxd6 {[%clk 00:04:00]} {[%emt 00:02:31]} 35. b5 {[%clk 00:12:20]}
{[%emt 00:00:13]} axb5 {[%clk 00:02:43]} {[%emt 00:01:48]} 36. axb5 {[%clk
00:12:40]} {[%emt 00:00:09]} Ne7 {[%clk 00:03:09]} {[%emt 00:00:04]} 37. Qb4+
{[%clk 00:12:45]} {[%emt 00:00:26]} Ke6 {[%clk 00:02:55]} {[%emt 00:00:44]} 38.
Qc5 {[%clk 00:10:41]} {[%emt 00:02:33]} Qe4 {[%clk 00:03:00]} {[%emt 00:00:25]}
39. Qb6+ {[%clk 00:10:34]} {[%emt 00:00:37]} Kd7 {[%clk 00:03:01]} {[%emt
00:00:29]} 40. Qc5 {[%clk 00:09:41]} {[%emt 00:01:24]} f6 {[%clk 00:03:25]}
{[%emt 00:00:06]} 41. Bf2 {[%clk 00:07:39]} {[%emt 00:02:32]} Qd5 {[%clk
00:03:29]} {[%emt 00:00:27]} 42. Qb4 {[%clk 00:07:47]} {[%emt 00:00:22]} g5
{[%clk 00:03:19]} {[%emt 00:00:40]} 43. Bc5 {[%clk 00:07:56]} {[%emt 00:00:21]}
Nf5 {[%clk 00:03:07]} {[%emt 00:00:42]} 44. Bf2 {[%clk 00:05:25]} {[%emt
00:03:02]} Ke6 {[%clk 00:02:50]} {[%emt 00:00:47]} 45. b6 {[%clk 00:05:09]}
{[%emt 00:00:46]} e4 {[%clk 00:02:58]} {[%emt 00:00:21]} 46. Qf8 {[%clk
00:03:48]} {[%emt 00:01:50]} Ne7 {[%clk 00:03:23]} {[%emt 00:00:05]} 47. Bg3
{[%clk 00:03:07]} {[%emt 00:01:12]} e3 {[%clk 00:03:42]} {[%emt 00:00:11]} 48.
Qa8 {[%clk 00:02:42]} {[%emt 00:00:55]} e2 {[%clk 00:03:50]} {[%emt 00:00:22]}
49. Qa1 {[%clk 00:02:42]} {[%emt 00:00:30]} Qe4 {[%clk 00:04:13]} {[%emt
00:00:08]} 50. Qc1 {[%clk 00:02:05]} {[%emt 00:01:06]} Kf7 {[%clk 00:04:25]}
{[%emt 00:00:17]} 51. Be1 {[%clk 00:02:13]} {[%emt 00:00:22]} Kg6 {[%clk
00:04:39]} {[%emt 00:00:17]} 52. Qc3 {[%clk 00:01:59]} {[%emt 00:00:43]} Nf5
{[%clk 00:02:06]} {[%emt 00:03:02]} 53. Qc8 {[%clk 00:01:54]} {[%emt 00:00:35]}
Ng7 {[%clk 00:02:02]} {[%emt 00:00:35]} 54. Qc3 {[%clk 00:01:18]} {[%emt
00:01:06]} Ne6 {[%clk 00:01:01]} {[%emt 00:01:31]} 55. Qb3 {[%clk 00:01:29]}
{[%emt 00:00:19]} Qf4+ {[%clk 00:01:19]} {[%emt 00:00:12]} 56. g3 {[%clk
00:01:20]} {[%emt 00:00:40]} Qe4 {[%clk 00:01:34]} {[%emt 00:00:14]} 57. Kg1
{[%clk 00:01:18]} {[%emt 00:00:31]} Qf5 {[%clk 00:00:57]} {[%emt 00:01:08]} 58.
Bf2 {[%clk 00:01:10]} {[%emt 00:00:38]} Kh6 {[%clk 00:01:18]} {[%emt 00:00:10]}
59. Qe3 {[%clk 00:01:17]} {[%emt 00:00:22]} Qb1+ {[%clk 00:00:57]} {[%emt
00:00:51]} 60. Kh2 {[%clk 00:01:27]} {[%emt 00:00:19]} Qf1 {[%clk 00:01:15]}
{[%emt 00:00:12]} 61. h4 {[%clk 00:01:32]} {[%emt 00:00:24]} Kg6 {[%clk
00:01:16]} {[%emt 00:00:31]} 62. g4 {[%clk 00:00:59]} {[%emt 00:01:02]} gxh4
{[%clk 00:01:23]} {[%emt 00:00:24]} 63. Qe4+ {[%clk 00:01:04]} {[%emt
00:00:25]} Kh6 {[%clk 00:01:02]} {[%emt 00:00:52]} 64. Bxh4 {[%clk 00:00:34]}
{[%emt 00:01:00]} Qf4+ {[%clk 00:01:23]} {[%emt 00:00:08]} 65. Qxf4+ {[%clk
00:00:58]} {[%emt 00:00:06]} Nxf4 {[%clk 00:01:49]} {[%emt 00:00:04]} 66. Kg1
{[%clk 00:00:39]} {[%emt 00:00:49]} Nd3 {[%clk 00:02:13]} {[%emt 00:00:06]} 0-1

[Event "Elite Hotels Open 2024"]
[Site "Elite Stadshotellet, Kungsgatan 6, Vaxjo, Sweden"]
[Date "2024.02.11"]
[Round "7.13"]
[White "Kristensen, Kaare Hove"]
[Black "Mattsson, Michael"]
[Result "1-0"]
[TimeControl "15 minutes + 5 seconds per move from move one (Round 1 - 4) / 90 minutes + 30 seconds per move from move one (Round 5 - 8)"]
[WhiteTitle "IM"]
[WhiteFideId "1400940"]
[BlackFideId "1708961"]
[WhiteElo "2324"]
[BlackElo "2033"]

1. Nf3 {[%clk 01:30:55]} {[%emt 00:00:03]} Nf6 {[%clk 01:28:19]} {[%emt
00:02:43]} 2. c4 {[%clk 01:31:04]} {[%emt 00:00:21]} e6 {[%clk 01:28:30]}
{[%emt 00:00:19]} 3. Nc3 {[%clk 01:31:22]} {[%emt 00:00:12]} d5 {[%clk
01:28:31]} {[%emt 00:00:29]} 4. d4 {[%clk 01:31:25]} {[%emt 00:00:25]} Be7
{[%clk 01:24:11]} {[%emt 00:04:51]} 5. Bg5 {[%clk 01:31:37]} {[%emt 00:00:17]}
h6 {[%clk 01:24:27]} {[%emt 00:00:15]} 6. Bxf6 {[%clk 01:31:56]} {[%emt
00:00:12]} Bxf6 {[%clk 01:24:13]} {[%emt 00:00:44]} 7. e3 {[%clk 01:32:11]}
{[%emt 00:00:15]} O-O {[%clk 01:22:25]} {[%emt 00:02:18]} 8. Qd2 {[%clk
01:31:06]} {[%emt 00:01:35]} b6 {[%clk 01:20:42]} {[%emt 00:02:14]} 9. O-O-O
{[%clk 01:29:08]} {[%emt 00:02:26]} Ba6 {[%clk 01:20:27]} {[%emt 00:00:46]} 10.
cxd5 {[%clk 01:28:00]} {[%emt 00:01:38]} Bxf1 {[%clk 01:20:31]} {[%emt
00:00:26]} 11. Rdxf1 {[%clk 01:24:25]} {[%emt 00:04:05]} exd5 {[%clk 01:20:39]}
{[%emt 00:00:22]} 12. g4 {[%clk 01:23:58]} {[%emt 00:00:57]} g6 {[%clk
01:16:29]} {[%emt 00:04:40]} 13. h4 {[%clk 01:17:56]} {[%emt 00:06:30]} Re8
{[%clk 01:13:34]} {[%emt 00:03:26]} 14. g5 {[%clk 01:15:33]} {[%emt 00:02:53]}
hxg5 {[%clk 01:09:47]} {[%emt 00:04:18]} 15. hxg5 {[%clk 01:14:30]} {[%emt
00:01:32]} Bxg5 {[%clk 01:07:43]} {[%emt 00:02:35]} 16. Nxg5 {[%clk 01:11:53]}
{[%emt 00:03:07]} Qxg5 {[%clk 01:07:54]} {[%emt 00:00:18]} 17. f4 {[%clk
01:04:18]} {[%emt 00:08:05]} Qf5 {[%clk 01:07:20]} {[%emt 00:01:04]} 18. Qh2
{[%clk 00:57:27]} {[%emt 00:07:20]} Kf8 {[%clk 01:03:19]} {[%emt 00:04:32]} 19.
Qh8+ {[%clk 00:45:58]} {[%emt 00:11:59]} Ke7 {[%clk 01:02:00]} {[%emt
00:01:49]} 20. Qe5+ {[%clk 00:46:06]} {[%emt 00:00:22]} Qxe5 {[%clk 00:59:04]}
{[%emt 00:03:26]} 21. fxe5 {[%clk 00:45:13]} {[%emt 00:01:22]} c6 {[%clk
00:58:15]} {[%emt 00:01:20]} 22. Rh7 {[%clk 00:45:21]} {[%emt 00:00:21]} Rf8
{[%clk 00:57:56]} {[%emt 00:00:49]} 23. Rf6 {[%clk 00:42:01]} {[%emt 00:03:49]}
g5 {[%clk 00:55:26]} {[%emt 00:03:00]} 24. Rg7 {[%clk 00:35:43]} {[%emt
00:06:48]} b5 {[%clk 00:54:45]} {[%emt 00:01:13]} 25. Rxg5 {[%clk 00:32:13]}
{[%emt 00:03:59]} a6 {[%clk 00:52:11]} {[%emt 00:03:04]} 26. Rg7 {[%clk
00:30:47]} {[%emt 00:01:54]} Ra7 {[%clk 00:50:59]} {[%emt 00:01:44]} 27. Kd1
{[%clk 00:24:39]} {[%emt 00:06:38]} Ke8 {[%clk 00:48:10]} {[%emt 00:03:19]} 28.
Ke2 {[%clk 00:23:43]} {[%emt 00:01:25]} Re7 {[%clk 00:48:03]} {[%emt 00:00:37]}
29. e4 {[%clk 00:21:25]} {[%emt 00:02:47]} b4 {[%clk 00:47:19]} {[%emt
00:01:15]} 30. Na4 {[%clk 00:21:41]} {[%emt 00:00:14]} dxe4 {[%clk 00:47:00]}
{[%emt 00:00:49]} 31. Nc5 {[%clk 00:20:13]} {[%emt 00:01:57]} Rh8 {[%clk
00:44:26]} {[%emt 00:03:04]} 32. Rh6 {[%clk 00:17:49]} {[%emt 00:02:54]} Rf8
{[%clk 00:43:47]} {[%emt 00:01:10]} 33. Nxe4 {[%clk 00:17:38]} {[%emt
00:00:41]} Re6 {[%clk 00:43:35]} {[%emt 00:00:42]} 34. Rxe6+ {[%clk 00:16:51]}
{[%emt 00:01:17]} fxe6 {[%clk 00:44:01]} {[%emt 00:00:04]} 35. Nc5 {[%clk
00:16:04]} {[%emt 00:01:16]} Rf7 {[%clk 00:43:51]} {[%emt 00:00:41]} 36. Rg8+
{[%clk 00:16:23]} {[%emt 00:00:11]} Rf8 {[%clk 00:44:13]} {[%emt 00:00:09]} 37.
Rxf8+ {[%clk 00:16:46]} {[%emt 00:00:07]} Kxf8 {[%clk 00:44:38]} {[%emt
00:00:04]} 38. Nxe6+ {[%clk 00:17:02]} {[%emt 00:00:13]} Ke7 {[%clk 00:45:04]}
{[%emt 00:00:05]} 39. Nc5 {[%clk 00:17:18]} {[%emt 00:00:13]} a5 {[%clk
00:45:18]} {[%emt 00:00:17]} 40. Kd3 {[%clk 00:17:33]} {[%emt 00:00:14]} 1-0

[Event "Elite Hotels Open 2024"]
[Site "Elite Stadshotellet, Kungsgatan 6, Vaxjo, Sweden"]
[Date "2024.02.11"]
[Round "7.14"]
[White "Silseth, Simon"]
[Black "Soppela, Toni"]
[Result "1/2-1/2"]
[TimeControl "15 minutes + 5 seconds per move from move one (Round 1 - 4) / 90 minutes + 30 seconds per move from move one (Round 5 - 8)"]
[WhiteTitle "FM"]
[WhiteFideId "1702440"]
[BlackFideId "1766163"]
[WhiteElo "2228"]
[BlackElo "2029"]

1. c4 {[%clk 01:30:57]} {[%emt 00:00:02]} Nf6 {[%clk 01:30:27]} {[%emt
00:00:33]} 2. Nc3 {[%clk 01:31:16]} {[%emt 00:00:12]} c5 {[%clk 01:30:13]}
{[%emt 00:00:44]} 3. Nf3 {[%clk 01:31:01]} {[%emt 00:00:45]} g6 {[%clk
01:30:09]} {[%emt 00:00:34]} 4. g3 {[%clk 01:31:23]} {[%emt 00:00:08]} Bg7
{[%clk 01:30:00]} {[%emt 00:00:39]} 5. Bg2 {[%clk 01:31:43]} {[%emt 00:00:10]}
O-O {[%clk 01:30:08]} {[%emt 00:00:21]} 6. d4 {[%clk 01:31:11]} {[%emt
00:01:02]} cxd4 {[%clk 01:29:50]} {[%emt 00:00:49]} 7. Nxd4 {[%clk 01:31:13]}
{[%emt 00:00:28]} Qc7 {[%clk 01:28:58]} {[%emt 00:01:21]} 8. Ncb5 {[%clk
01:18:36]} {[%emt 00:13:08]} Qxc4 {[%clk 01:13:50]} {[%emt 00:15:38]} 9. O-O
{[%clk 01:04:42]} {[%emt 00:14:25]} Nc6 {[%clk 01:09:06]} {[%emt 00:05:13]} 10.
b3 {[%clk 00:42:37]} {[%emt 00:22:36]} Qc5 {[%clk 01:06:17]} {[%emt 00:03:18]}
11. Ba3 {[%clk 00:40:36]} {[%emt 00:02:32]} Qb6 {[%clk 01:03:01]} {[%emt
00:03:45]} 12. e3 {[%clk 00:37:19]} {[%emt 00:03:48]} a6 {[%clk 00:57:50]}
{[%emt 00:05:42]} 13. Nc3 {[%clk 00:33:46]} {[%emt 00:04:03]} Nxd4 {[%clk
00:53:49]} {[%emt 00:04:31]} 14. exd4 {[%clk 00:33:36]} {[%emt 00:00:39]} d6
{[%clk 00:52:08]} {[%emt 00:02:12]} 15. Na4 {[%clk 00:31:17]} {[%emt 00:02:48]}
Qa5 {[%clk 00:45:21]} {[%emt 00:07:15]} 16. Qe1 {[%clk 00:29:54]} {[%emt
00:01:55]} Qd8 {[%clk 00:41:49]} {[%emt 00:04:02]} 17. Rc1 {[%clk 00:28:24]}
{[%emt 00:02:00]} Rb8 {[%clk 00:37:11]} {[%emt 00:05:07]} 18. Bb4 {[%clk
00:27:33]} {[%emt 00:01:22]} Bd7 {[%clk 00:35:48]} {[%emt 00:01:53]} 19. Qd2
{[%clk 00:26:29]} {[%emt 00:01:34]} Bxa4 {[%clk 00:34:35]} {[%emt 00:01:43]} 20.
bxa4 {[%clk 00:26:53]} {[%emt 00:00:06]} Qd7 {[%clk 00:34:34]} {[%emt
00:00:30]} 21. Qc2 {[%clk 00:22:23]} {[%emt 00:05:00]} Rfc8 {[%clk 00:33:42]}
{[%emt 00:01:21]} 22. Qb3 {[%clk 00:22:41]} {[%emt 00:00:13]} Ne8 {[%clk
00:27:14]} {[%emt 00:06:59]} 23. Rcd1 {[%clk 00:22:13]} {[%emt 00:00:58]} Nc7
{[%clk 00:26:29]} {[%emt 00:01:15]} 24. Rfe1 {[%clk 00:22:15]} {[%emt
00:00:27]} e6 {[%clk 00:24:48]} {[%emt 00:02:11]} 25. h4 {[%clk 00:22:06]}
{[%emt 00:00:40]} b6 {[%clk 00:23:41]} {[%emt 00:01:38]} 26. d5 {[%clk
00:22:06]} {[%emt 00:00:29]} e5 {[%clk 00:22:42]} {[%emt 00:01:29]} 27. Rc1
{[%clk 00:22:21]} {[%emt 00:00:14]} a5 {[%clk 00:22:55]} {[%emt 00:00:19]} 28.
Ba3 {[%clk 00:21:14]} {[%emt 00:01:36]} b5 {[%clk 00:19:27]} {[%emt 00:03:57]}
29. Rc6 {[%clk 00:21:17]} {[%emt 00:00:26]} b4 {[%clk 00:15:51]} {[%emt
00:04:06]} 30. Bb2 {[%clk 00:20:50]} {[%emt 00:00:57]} Bh6 {[%clk 00:13:58]}
{[%emt 00:02:24]} 31. Qc4 {[%clk 00:20:02]} {[%emt 00:01:17]} 1/2-1/2

[Event "Elite Hotels Open 2024"]
[Site "Elite Stadshotellet, Kungsgatan 6, Vaxjo, Sweden"]
[Date "2024.02.11"]
[Round "7.15"]
[White "Sevastianov, Andrii"]
[Black "Joensson, Oscar"]
[Result "1/2-1/2"]
[TimeControl "15 minutes + 5 seconds per move from move one (Round 1 - 4) / 90 minutes + 30 seconds per move from move one (Round 5 - 8)"]
[WhiteFideId "1730240"]
[BlackFideId "1729977"]
[WhiteElo "2164"]
[BlackElo "2022"]

1. e4 {[%clk 01:30:56]} {[%emt 00:00:02]} c6 {[%clk 01:30:56]} {[%emt
00:00:05]} 2. d4 {[%clk 01:31:16]} {[%emt 00:00:10]} d5 {[%clk 01:31:22]}
{[%emt 00:00:05]} 3. exd5 {[%clk 01:31:31]} {[%emt 00:00:13]} cxd5 {[%clk
01:31:48]} {[%emt 00:00:06]} 4. Bd3 {[%clk 01:31:46]} {[%emt 00:00:13]} Nf6
{[%clk 01:32:13]} {[%emt 00:00:06]} 5. h3 {[%clk 01:31:50]} {[%emt 00:00:25]}
Nc6 {[%clk 01:32:37]} {[%emt 00:00:08]} 6. c3 {[%clk 01:32:09]} {[%emt
00:00:10]} g6 {[%clk 01:33:01]} {[%emt 00:00:07]} 7. Nf3 {[%clk 01:32:19]}
{[%emt 00:00:18]} Bf5 {[%clk 01:33:19]} {[%emt 00:00:14]} 8. Be2 {[%clk
01:32:40]} {[%emt 00:00:08]} Bg7 {[%clk 01:33:17]} {[%emt 00:00:33]} 9. O-O
{[%clk 01:30:00]} {[%emt 00:03:08]} O-O {[%clk 01:33:16]} {[%emt 00:00:32]} 10.
Bf4 {[%clk 01:30:07]} {[%emt 00:00:22]} Rc8 {[%clk 01:31:18]} {[%emt 00:02:30]}
11. Nbd2 {[%clk 01:29:34]} {[%emt 00:01:00]} a6 {[%clk 01:23:20]} {[%emt
00:08:31]} 12. Re1 {[%clk 01:29:19]} {[%emt 00:00:43]} b5 {[%clk 01:18:44]}
{[%emt 00:05:08]} 13. Ne5 {[%clk 01:23:22]} {[%emt 00:06:26]} Nxd4 {[%clk
00:35:40]} {[%emt 00:43:35]} 14. cxd4 {[%clk 01:14:52]} {[%emt 00:08:58]} Bc2
{[%clk 00:35:50]} {[%emt 00:00:21]} 15. Qc1 {[%clk 01:15:15]} {[%emt 00:00:08]}
Be4 {[%clk 00:36:15]} {[%emt 00:00:04]} 16. Qd1 {[%clk 01:13:13]} {[%emt
00:02:32]} Bc2 {[%clk 00:36:40]} {[%emt 00:00:06]} 17. Qc1 {[%clk 01:13:36]}
{[%emt 00:00:06]} Be4 {[%clk 00:37:06]} {[%emt 00:00:05]} 18. Qd1 {[%emt
00:07:14]} 1/2-1/2